[Event "Polish Youth Ekstraliga 2022"]
[Site "Lublin"]
[Date "2022.07.02"]
[Round "8.17"]
[White "Zabrzanska, Weronika"]
[Black "Dylag, Emilia"]
[Result "0-1"]
[ECO "B22"]
[WhiteElo "1882"]
[BlackElo "2022"]
[Annotator "NA RC"]
[PlyCount "67"]
[EventDate "2022.06.24"]
[EventType "team-tourn"]
[EventCountry "POL"]
[SourceTitle "playchess.com"]
[Source "ChessBase"]
[SourceQuality "1"]
[TimeControl "40/5400+30:1800+30"]

1. e4 {[%emt 0:00:02]} c5 {[%emt 0:00:06]} 2. c3 {[%emt 0:00:35]} e5 {[%emt 0:00:10]} 3. Nf3 {[%emt 0:01:47]} Nc6 {[%emt 0:00:10]} 4. d4 {[%emt 0:00:24]} cxd4 {[%emt 0:00:12]} 5. cxd4 {[%emt 0:00:17]} exd4 {[%emt 0:00:18]} 6. Nxd4 {[%emt 0:04:37]} Nf6 {[%emt 0:00:21]} 7. Nc3 {[%emt 0:07:51]} Bb4 {[%emt 0:00:41]} 8. Nxc6 {[%emt 0:01:30]} dxc6 {[%emt 0:05:09]} 9. Qxd8+ {[%emt 0:05:32]} Kxd8 {[%emt 0:01:56]} 10. Bd2 {[%emt 0:03:16]} Be6 {[%emt 0:02:53]} 11. O-O-O {[%emt 0:00:29]} Kc8 {[%emt 0:04:03]} 12. a3 {[%emt 0:04:21]} Bc5 {[%emt 0:03:33]} 13. f3 {[%emt 0:02:38]} b5 {[%emt 0:15:38]} 14. b4 {[%emt 0:22:30]} Be7 {[%emt 0:01:11]} 15. Kb2 {[%emt 0:05:30]} a5 {[%emt 0:05:20]} 16. bxa5 {[%emt 0:05:18]} Rd8 {[%emt 0:04:21]} 17. Be2 {[%emt 0:09:30]} Nd7 {[%emt 0:06:50]} 18. Rc1 {[%emt 0:02:29]} Nc5 {[%emt 0:03:32]} 19. Be3 {[%emt 0:02:02]} Nb3 {[%emt 0:08:07]} 20. Rc2 {[%emt 0:03:07]} Kb7 {[%emt 0:03:46]} 21. Bb6 {[%emt 0:03:10]} Rd7 {[%emt 0:00:53]} 22. Nxb5 {[%emt 0:01:18]} Nxa5 {[%emt 0:09:33]} 23. Bxa5 {[%emt 0:02:32]} Rxa5 {[%emt 0:00:33]} 24. Nc3 {[%emt 0:07:43]} Bxa3+ {[%emt 0:00:36]} 25. Kb1 {[%emt 0:00:59]} Bb3 {[%emt 0:01:03]} 26. Rd1 {[%emt 0:00:48]} Rxd1+ {[%emt 0:01:19]} 27. Bxd1 {[%emt 0:00:43]} Bxc2+ {[%emt 0:00:13]} 28. Bxc2 {[%emt 0:00:15]} Bd6 {[%emt 0:00:40]} 29. Bb3 {[%emt 0:00:29]} f6 {[%emt 0:01:57]} 30. g3 {[%emt 0:00:33]} Rh5 {[%emt 0:00:50]} 31. Nd1 {[%emt 0:02:23]} Rxh2 {[%emt 0:00:09]} 32. Ne3 {[%emt 0:00:03]} Bxg3 {[%emt 0:00:15]} 33. Nf5 {[%emt 0:00:30]} Be5 {[%emt 0:00:14]} 34. Ba4 0-1

[Event "Polish Youth Ekstraliga 2022"]
[Site "Lublin"]
[Date "2022.07.02"]
[Round "8.18"]
[White "Bandyk, Joanna"]
[Black "Polakiewicz, Blanka"]
[Result "1-0"]
[ECO "B43"]
[WhiteElo "1360"]
[BlackElo "1151"]
[Annotator "NA RC"]
[PlyCount "79"]
[EventDate "2022.06.24"]
[EventType "team-tourn"]
[EventCountry "POL"]
[SourceTitle "playchess.com"]
[Source "ChessBase"]
[SourceQuality "1"]
[TimeControl "40/5400+30:1800+30"]

1. e4 {[%emt 0:00:02]} c5 {[%emt 0:00:06]} 2. Nf3 {[%emt 0:00:06]} e6 {[%emt 0:00:09]} 3. d4 {[%emt 0:00:07]} cxd4 {[%emt 0:00:07]} 4. Nxd4 {[%emt 0:00:06]} a6 {[%emt 0:00:09]} 5. Nc3 {[%emt 0:03:02]} b5 {[%emt 0:00:39]} 6. Be3 {[%emt 0:03:07]} Bb7 {[%emt 0:00:36]} 7. f3 {[%emt 0:01:07]} Qc7 {[%emt 0:01:39]} 8. Qd2 {[%emt 0:06:17]} Bb4 {[%emt 0:04:03]} 9. a3 {[%emt 0:05:32]} Bxc3 {[%emt 0:00:34]} 10. Qxc3 {[%emt 0:00:16]} Qxc3+ {[%emt 0:00:40]} 11. bxc3 {[%emt 0:00:04]} Nc6 {[%emt 0:04:08]} 12. c4 {[%emt 0:02:23]} bxc4 {[%emt 0:02:02]} 13. Bxc4 {[%emt 0:01:53]} Nge7 {[%emt 0:09:34]} 14. Rb1 {[%emt 0:01:49]} Rb8 {[%emt 0:08:43]} 15. O-O {[%emt 0:01:12]} O-O {[%emt 0:00:34]} 16. Nxc6 {[%emt 0:01:20]} Nxc6 {[%emt 0:00:38]} 17. Bc5 {[%emt 0:00:52]} Na5 {[%emt 0:05:38]} 18. Bxf8 {[%emt 0:00:56]} Nxc4 {[%emt 0:00:23]} 19. Rb4 {[%emt 0:01:00]} Kxf8 {[%emt 0:14:32]} 20. Rxc4 {[%emt 0:00:41]} Bc6 {[%emt 0:00:52]} 21. Rb4 {[%emt 0:00:50]} Ra8 {[%emt 0:02:47]} 22. Rfb1 {[%emt 0:03:37]} Ke7 {[%emt 0:01:41]} 23. Kf2 {[%emt 0:02:13]} Kf6 {[%emt 0:01:11]} 24. Rb8 {[%emt 0:00:27]} Ra7 {[%emt 0:01:06]} 25. R1b6 {[%emt 0:02:06]} a5 {[%emt 0:04:34]} 26. Ke3 {[%emt 0:01:30]} a4 {[%emt 0:02:17]} 27. Rb4 {[%emt 0:05:03]} Ra5 {[%emt 0:03:16]} 28. c4 {[%emt 0:02:22]} Re5 {[%emt 0:04:05]} 29. R8b5 {[%emt 0:01:18]} Bxb5 {[%emt 0:02:14]} 30. cxb5 {[%emt 0:02:41]} Rc5 {[%emt 0:03:08]} 31. b6 {[%emt 0:01:07]} Rc8 {[%emt 0:00:28]} 32. Rxa4 {[%emt 0:00:17]} Ke7 {[%emt 0:02:58]} 33. Rb4 {[%emt 0:01:16]} Ra8 {[%emt 0:01:44]} 34. a4 {[%emt 0:01:11]} Kd8 {[%emt 0:02:03]} 35. b7 {[%emt 0:00:14]} Rb8 {[%emt 0:00:16]} 36. a5 {[%emt 0:00:03]} Kc7 {[%emt 0:00:37]} 37. a6 {[%emt 0:00:12]} h6 {[%emt 0:01:03]} 38. a7 {[%emt 0:02:13]} Rxb7 {[%emt 0:00:11]} 39. Rc4+ {[%emt 0:00:09]} Kd6 {[%emt 0:00:18]} 40. a8=Q {[%emt 0:00:00]} 1-0

[Event "Polish Youth Ekstraliga 2022"]
[Site "Lublin"]
[Date "2022.07.02"]
[Round "8.19"]
[White "Baum, Jonasz"]
[Black "Czernek, Tymon"]
[Result "1-0"]
[ECO "D19"]
[WhiteElo "2409"]
[BlackElo "2199"]
[Annotator "TA"]
[PlyCount "111"]
[EventDate "2022.06.24"]
[EventType "team-tourn"]
[EventCountry "POL"]
[SourceTitle "playchess.com"]
[Source "ChessBase"]
[SourceQuality "1"]
[TimeControl "40/5400+30:1800+30"]

{[%evp 27,111,15,20,24,24,21,17,27,66,66,77,74,79,72,72,65,76,85,170,65,76,72,74,79,79,58,62,58,91,91,92,33,52,52,52,34,84,84,87,79,122,122,214,212,159,64,40,33,851,728,2082,1993,2470,1731,29972,29975,29975,29976,29976,29977,29977,29978,29977,29978,29978,29979,29979,29980,29980,29981,29981,29982,29982,29983,29983,29984,29984,29985,29985,29986,29986,29987,29987,29988,29988,29989]} 1. d4 {[%emt 0:00:02]} d5 {[%emt 0:00:31]} 2. c4 {[%emt 0:00:15]} c6 {[%emt 0:00:04]} 3. Nf3 {[%emt 0:00:04]} Nf6 {[%emt 0:00:04]} 4. Nc3 {[%emt 0:00:14]} dxc4 {[%emt 0:00:06]} 5. a4 {[%emt 0:00:09]} Bf5 {[%emt 0:00:04]} 6. e3 {[%emt 0:00:05][%cal Be2e3,Be3e4,Be4e5][%mdl 32]} e6 {[%emt 0:00:05]} 7. Bxc4 {[%emt 0:00:03]} Bb4 {[%emt 0:00:06]} 8. O-O {[%emt 0:00:05]} O-O {[%emt 0:00:04]} 9. Qe2 {[%emt 0:00:16]} Nbd7 {[%emt 0:00:07]} 10. e4 {[%emt 0:00:28]} Bg6 {[%emt 0:00:04]} 11. Bd3 {[%emt 0:00:14]} Bh5 {[%emt 0:00:05]} 12. e5 {[%emt 0:00:30]} Nd5 {[%emt 0:00:05]} 13. Nxd5 {[%emt 0:00:03]} cxd5 {[%emt 0:00:04]} 14. Qe3 {[%emt 0:00:25]} Be7 {[%emt 0:09:42]} 15. Ng5 $1 {[%emt 0:01:06] 15.Ng5 scores better than 15.Bd2. D19: Slav Defence: 5 a4 Bf5 6 e3: Main line with 9 Qe2.} Bxg5 {[%emt 0:11:33]} 16. Qxg5 {[%emt 0:00:08]} Qxg5 {[%emt 0:05:29]} 17. Bxg5 {[%emt 0:00:01] The position is equal.} a6 {[%emt 0:00:59]} 18. Rfc1 {[%emt 0:25:28]} Rac8 {[%emt 0:00:26] [#] Inhibits Rc7.} 19. Be7 $146 {[%emt 0:11:25]} ({Predecessor:} 19. a5 Nb8 20. Be7 Rfe8 21. Bc5 Bg6 22. Be2 Nd7 23. b4 Nxc5 24. bxc5 Rc6 25. Rc3 {1-0 (48) Mulyar,M (2392)-Pressman,L (2265) Arlington 2015}) 19... Rfe8 {[%emt 0:00:06]} 20. Bd6 {[%emt 0:00:05] White is more active.} Bg6 {[%emt 0:02:22]} 21. Bf1 {[%emt 0:17:14]} Nb6 {[%emt 0:02:48]} 22. b3 {[%emt 0:01:13]} f6 {[%emt 0:12:53]} (22... Nd7 $16) 23. f4 {[%emt 0:02:29]} (23. a5 $1 $18 {[%cal Ra5b6]} Nd7 24. b4) 23... fxe5 {[%emt 0:03:13]} 24. fxe5 {[%emt 0:04:26]} ({Don't play} 24. Bxe5 Nd7 $11) 24... Rxc1 {[%emt 0:01:35]} 25. Rxc1 {[%emt 0:00:04] aiming for a5.} Rc8 {[%emt 0:00:03]} 26. Rc5 {[%emt 0:01:06] Black must now prevent a5.} Be8 $1 {[%emt 0:00:06]} 27. Kf2 {[%emt 0:03:55]} Rc6 {[%emt 0:07:42]} 28. Ke3 {[%emt 0:01:03]} Nc8 {[%emt 0:01:28]} 29. Bc7 {[%emt 0:12:17]} (29. Rxc6 $16 Bxc6 30. Bc5) 29... Ne7 {[%emt 0:01:37]} 30. Rxc6 {[%emt 0:03:47]} Nxc6 $14 {[%emt 0:02:49][%mdl 4096] Endgame KBB-KBN} 31. Kd3 {[%emt 0:00:58]} Kf7 {[%emt 0:04:32]} (31... Bh5 $14) 32. Kc3 $16 {[%emt 0:00:57]} Kg6 {[%emt 0:01:20]} 33. Bd3+ {[%emt 0:06:46]} Kh6 {[%emt 0:00:04]} 34. b4 {[%emt 0:02:11]} Na7 {[%emt 0:01:19] Prevents b5.} (34... Ne7 $16) 35. b5 $1 $18 {[%emt 0:03:15]} axb5 {[%emt 0:02:24]} 36. Bb6 {[%emt 0:04:09]} (36. a5 $1 $16) 36... Nc8 $14 {[%emt 0:00:33]} 37. a5 {[%emt 0:00:01] Hoping for Bc5.} g6 $2 {[%emt 0:02:53][%mdl 8192] This costs Black the game.} (37... Nxb6 $14 38. axb6 g6) 38. Bc5 $1 $18 {[%emt 0:00:39] Strongly threatening Kb4.} Kg7 {[%emt 0:00:55]} 39. Kb4 {[%emt 0:00:05]} Kf7 {[%emt 0:00:21]} 40. Bxb5 {[%emt 0:00:00]} Bxb5 {[%emt 0:00:00]} 41. Kxb5 {[%emt 0:00:57] KB-KN. White mates.} Ke8 {[%emt 0:04:11] [#]} 42. a6 $1 {[%emt 0:00:44]} bxa6+ {[%emt 0:00:20]} 43. Kxa6 {[%emt 0:00:05]} Kd8 {[%emt 0:00:52] [#]} 44. Kb7 $1 {[%emt 0:00:08]} Kd7 {[%emt 0:00:02]} 45. g3 {[%emt 0:00:22]} h6 {[%emt 0:00:53]} 46. h3 {[%emt 0:00:12][%cal Bh2h3,Bh3h4][%mdl 32]} h5 {[%emt 0:00:05]} 47. h4 {[%emt 0:00:58]} Kd8 {[%emt 0:00:02]} 48. Kc6 {[%emt 0:00:15]} Ke8 {[%emt 0:00:13]} 49. Kc7 {[%emt 0:00:11]} Ne7 {[%emt 0:00:03]} 50. Bxe7 {[%emt 0:00:16]} Kxe7 {[%emt 0:00:03] KP-KP} 51. Kc6 {[%emt 0:00:09]} Ke8 {[%emt 0:00:09]} 52. Kd6 {[%emt 0:00:05]} Kf7 {[%emt 0:00:05]} 53. Kd7 {[%emt 0:00:03]} g5 {[%emt 0:00:12]} 54. hxg5 {[%emt 0:00:18]} Kg6 {[%emt 0:00:03]} 55. Kxe6 {[%emt 0:00:05]} Kxg5 {[%emt 0:00:03]} 56. Kxd5 {[%emt 0:00:12] Weighted Error Value: White=0.08 (flawless) /Black=0.24 (precise)} 1-0

[Event "Polish Youth Ekstraliga 2022"]
[Site "Lublin"]
[Date "2022.07.02"]
[Round "8.20"]
[White "Chyzy, Jakub"]
[Black "Janeczko, Jakub"]
[Result "1-0"]
[ECO "B24"]
[WhiteElo "2191"]
[BlackElo "2087"]
[Annotator "RC"]
[PlyCount "119"]
[EventDate "2022.06.24"]
[EventType "team-tourn"]
[EventCountry "POL"]
[SourceTitle "playchess.com"]
[Source "ChessBase"]
[SourceQuality "1"]
[TimeControl "40/5400+30:1800+30"]

1. e4 {[%emt 0:00:35]} c5 {[%emt 0:00:05]} 2. Nc3 {[%emt 0:00:04]} Nc6 {[%emt 0:00:31]} 3. Bb5 {[%emt 0:00:09]} Nd4 {[%emt 0:00:33]} 4. Bc4 {[%emt 0:00:04]} a6 {[%emt 0:00:07]} 5. a4 {[%emt 0:11:52]} g6 {[%emt 0:00:15]} 6. Nge2 {[%emt 0:03:08]} Bg7 {[%emt 0:02:24]} 7. O-O {[%emt 0:00:32]} e6 {[%emt 0:04:41]} 8. Nxd4 {[%emt 0:02:14]} cxd4 {[%emt 0:00:08]} 9. Ne2 {[%emt 0:00:14]} Ne7 {[%emt 0:01:46]} 10. c3 {[%emt 0:05:23]} dxc3 {[%emt 0:16:35]} 11. dxc3 {[%emt 0:04:15]} Qc7 {[%emt 0:01:42]} 12. Bb3 {[%emt 0:05:26]} O-O {[%emt 0:03:45]} 13. Bf4 {[%emt 0:04:01]} e5 {[%emt 0:01:21]} 14. Bg5 {[%emt 0:01:24]} d6 {[%emt 0:13:39]} 15. Bxe7 {[%emt 0:03:12]} Qxe7 {[%emt 0:00:10]} 16. Bd5 {[%emt 0:02:17]} Rb8 {[%emt 0:07:04]} 17. c4 {[%emt 0:11:13]} a5 {[%emt 0:09:46]} 18. Nc3 {[%emt 0:00:19]} Kh8 {[%emt 0:03:42]} 19. Qd2 {[%emt 0:04:14]} Ra8 {[%emt 0:12:36]} 20. Ra3 {[%emt 0:02:09]} f5 {[%emt 0:01:09]} 21. f3 {[%emt 0:02:33]} Ra6 {[%emt 0:02:18]} 22. Rb3 {[%emt 0:04:25]} Bf6 {[%emt 0:01:14]} 23. Rd1 {[%emt 0:07:56]} Bg5 {[%emt 0:03:36]} 24. Qd3 {[%emt 0:11:55]} Qc7 {[%emt 0:01:55]} 25. Kh1 {[%emt 0:01:57]} Rb6 {[%emt 0:02:30]} 26. Nb5 {[%emt 0:03:14]} Qc5 {[%emt 0:00:09]} 27. Qe2 {[%emt 0:01:05]} f4 {[%emt 0:01:48]} 28. Qe1 {[%emt 0:01:45]} Ra6 {[%emt 0:01:01]} 29. Nc3 {[%emt 0:02:50]} Rb6 {[%emt 0:00:24]} 30. Rb5 {[%emt 0:01:01]} Rxb5 {[%emt 0:02:56]} 31. axb5 {[%emt 0:00:15]} Qb4 {[%emt 0:01:37]} 32. Qf2 {[%emt 0:00:37]} Bd8 {[%emt 0:00:39]} 33. Ra1 {[%emt 0:01:34]} h5 {[%emt 0:02:54]} 34. Na4 {[%emt 0:00:44]} g5 {[%emt 0:01:57]} 35. Nb6 {[%emt 0:01:46]} Bxb6 {[%emt 0:00:01]} 36. Qxb6 {[%emt 0:00:06]} g4 {[%emt 0:00:01]} 37. Qc7 {[%emt 0:00:38]} gxf3 {[%emt 0:00:28]} 38. Qe7 {[%emt 0:00:43]} fxg2+ {[%emt 0:00:32]} 39. Kg1 {[%emt 0:00:12]} Qc5+ {[%emt 0:01:25]} 40. Kxg2 {[%emt 0:00:00]} f3+ {[%emt 0:00:00]} 41. Kh1 {[%emt 0:01:43]} Rf4 {[%emt 0:02:48]} 42. Qg5 {[%emt 0:01:19]} Kh7 {[%emt 0:10:36]} 43. Qxh5+ {[%emt 0:01:49]} Kg7 {[%emt 0:00:01]} 44. Rg1+ {[%emt 0:01:01]} Qxg1+ {[%emt 0:00:03]} 45. Kxg1 {[%emt 0:00:04]} f2+ {[%emt 0:00:07]} 46. Kf1 {[%emt 0:00:04]} Bg4 {[%emt 0:00:03]} 47. Qg5+ {[%emt 0:00:08]} Kf8 {[%emt 0:01:02]} 48. Qxf4+ {[%emt 0:00:32]} exf4 {[%emt 0:00:05]} 49. Bxb7 {[%emt 0:00:10]} Ke7 {[%emt 0:00:27]} 50. Kxf2 {[%emt 0:01:37]} Kd7 {[%emt 0:00:08]} 51. b6 {[%emt 0:01:51]} Bd1 {[%emt 0:00:38]} 52. Bd5 {[%emt 0:00:49]} Bg4 {[%emt 0:00:05]} 53. h4 {[%emt 0:00:31]} Bh5 {[%emt 0:00:15]} 54. e5 {[%emt 0:03:36]} dxe5 {[%emt 0:00:24]} 55. c5 {[%emt 0:00:07]} Bg4 {[%emt 0:00:41]} 56. c6+ {[%emt 0:00:18]} Kc8 {[%emt 0:01:17]} 57. h5 {[%emt 0:01:03]} Bf5 {[%emt 0:00:22]} 58. h6 {[%emt 0:00:24]} e4 {[%emt 0:00:04]} 59. Be6+ {[%emt 0:00:28]} Bxe6 {[%emt 0:00:09]} 60. h7 {[%emt 0:00:06]} 1-0

[Event "Polish Youth Ekstraliga 2022"]
[Site "Lublin"]
[Date "2022.07.02"]
[Round "8.21"]
[White "Mulawa, Cyprian"]
[Black "Krawczyk, Flawian"]
[Result "1/2-1/2"]
[ECO "B52"]
[WhiteElo "2050"]
[BlackElo "2212"]
[Annotator "RC"]
[PlyCount "90"]
[EventDate "2022.06.24"]
[EventType "team-tourn"]
[EventCountry "POL"]
[SourceTitle "playchess.com"]
[Source "ChessBase"]
[SourceQuality "1"]
[TimeControl "40/5400+30:1800+30"]

1. e4 {[%emt 0:00:05]} c5 {[%emt 0:00:30]} 2. Nf3 {[%emt 0:00:13]} d6 {[%emt 0:00:06]} 3. Bb5+ {[%emt 0:00:03]} Bd7 {[%emt 0:00:44]} 4. Bxd7+ {[%emt 0:00:42]} Qxd7 {[%emt 0:00:03]} 5. c4 {[%emt 0:00:07]} Nc6 {[%emt 0:00:02]} 6. O-O {[%emt 0:01:55]} g6 {[%emt 0:00:03]} 7. d4 {[%emt 0:00:15]} cxd4 {[%emt 0:00:06]} 8. Nxd4 {[%emt 0:00:01]} Bg7 {[%emt 0:00:05]} 9. Be3 {[%emt 0:01:08]} Nf6 {[%emt 0:00:06]} 10. f3 {[%emt 0:00:08]} O-O {[%emt 0:00:06]} 11. Nc3 {[%emt 0:00:14]} Rfc8 {[%emt 0:05:19]} 12. b3 {[%emt 0:05:03]} Qd8 {[%emt 0:01:57]} 13. Nxc6 {[%emt 0:19:53]} bxc6 {[%emt 0:01:32]} 14. Rc1 {[%emt 0:11:13]} Nd7 {[%emt 0:02:24]} 15. Qe2 {[%emt 0:05:08]} Qa5 {[%emt 0:02:48]} 16. Na4 {[%emt 0:02:23]} Nb6 {[%emt 0:08:30]} 17. Bd2 {[%emt 0:11:33]} Bd4+ {[%emt 0:03:43]} 18. Kh1 {[%emt 0:02:22]} Qh5 {[%emt 0:01:33]} 19. Bc3 {[%emt 0:01:16]} Bxc3 {[%emt 0:01:43]} 20. Nxc3 {[%emt 0:00:15]} Qc5 {[%emt 0:08:01]} 21. Rfe1 {[%emt 0:06:47]} a5 {[%emt 0:07:07]} 22. e5 {[%emt 0:04:24]} dxe5 {[%emt 0:04:59]} 23. Qxe5 {[%emt 0:04:45]} Qxe5 {[%emt 0:01:37]} 24. Rxe5 {[%emt 0:00:01]} e6 {[%emt 0:02:09]} 25. Ree1 {[%emt 0:01:29]} Rd8 {[%emt 0:11:52]} 26. Rcd1 {[%emt 0:02:45]} Kf8 {[%emt 0:08:59]} 27. Kg1 {[%emt 0:00:56]} Ke7 {[%emt 0:00:12]} 28. Kf2 {[%emt 0:00:42]} Rab8 {[%emt 0:06:11]} 29. g3 {[%emt 0:02:21]} h5 {[%emt 0:01:57]} 30. f4 {[%emt 0:01:17]} a4 {[%emt 0:04:47]} 31. c5 {[%emt 0:03:44]} Nd5 {[%emt 0:00:01]} 32. Nxa4 {[%emt 0:00:22]} Nb4 {[%emt 0:00:02]} 33. Rxd8 {[%emt 0:00:16]} Rxd8 {[%emt 0:00:01]} 34. Re2 {[%emt 0:00:21]} Rd1 {[%emt 0:00:37]} 35. a3 {[%emt 0:04:14]} Nd5 {[%emt 0:03:01]} 36. Nb6 {[%emt 0:03:02]} Rb1 {[%emt 0:07:48]} 37. Nxd5+ {[%emt 0:03:41]} cxd5 {[%emt 0:00:01]} 38. b4 {[%emt 0:00:01]} Kd7 {[%emt 0:00:10]} 39. Ke3 {[%emt 0:01:43]} Rb3+ {[%emt 0:04:24]} 40. Kd4 {[%emt 0:00:00]} Rxa3 41. Rc2 {[%emt 0:09:32]} f6 {[%emt 0:10:33]} 42. b5 {[%emt 0:06:39]} Rb3 {[%emt 0:02:00]} 43. c6+ {[%emt 0:08:04]} Kd6 {[%emt 0:00:16]} 44. Rc3 {[%emt 0:00:03]} e5+ {[%emt 0:03:01]} 45. fxe5+ {[%emt 0:00:36]} fxe5+ {[%emt 0:00:02]} 1/2-1/2

[Event "Polish Youth Ekstraliga 2022"]
[Site "Lublin"]
[Date "2022.07.02"]
[Round "8.22"]
[White "Sowinski, Pawel"]
[Black "Suska, Szymon"]
[Result "1-0"]
[ECO "A16"]
[WhiteElo "2060"]
[BlackElo "1604"]
[Annotator "NA RC"]
[PlyCount "53"]
[EventDate "2022.06.24"]
[EventType "team-tourn"]
[EventCountry "POL"]
[SourceTitle "playchess.com"]
[Source "ChessBase"]
[SourceQuality "1"]
[TimeControl "40/5400+30:1800+30"]

1. c4 {[%emt 0:04:25]} Nf6 {[%emt 0:00:12]} 2. Nc3 {[%emt 0:00:39]} g6 {[%emt 0:00:08]} 3. g3 {[%emt 0:00:08]} Bg7 {[%emt 0:00:07]} 4. Bg2 {[%emt 0:00:04]} O-O {[%emt 0:00:09]} 5. e4 {[%emt 0:00:24]} d6 {[%emt 0:00:08]} 6. Nge2 {[%emt 0:00:03]} e5 {[%emt 0:01:37]} 7. O-O {[%emt 0:00:05]} Nc6 {[%emt 0:03:10]} 8. d3 {[%emt 0:00:39]} Bd7 {[%emt 0:03:54]} 9. h3 {[%emt 0:00:34]} a6 {[%emt 0:01:28]} 10. Be3 {[%emt 0:01:52]} Ne8 {[%emt 0:08:01]} 11. Qd2 {[%emt 0:03:30]} Nd4 {[%emt 0:09:20]} 12. Kh2 {[%emt 0:07:13]} Rb8 {[%emt 0:09:26]} 13. f4 {[%emt 0:09:01]} Nxe2 {[%emt 0:04:51]} 14. Nxe2 {[%emt 0:01:49]} exf4 {[%emt 0:02:16]} 15. Nxf4 {[%emt 0:03:41]} f5 {[%emt 0:08:52]} 16. exf5 {[%emt 0:02:35]} Bxf5 {[%emt 0:02:22]} 17. g4 {[%emt 0:08:38]} Bd7 {[%emt 0:07:20]} 18. Bd5+ {[%emt 0:15:23]} Kh8 {[%emt 0:04:45]} 19. Nxg6+ {[%emt 0:03:00]} hxg6 {[%emt 0:00:18]} 20. Rxf8+ {[%emt 0:00:03]} Bxf8 {[%emt 0:02:59]} 21. Bg5 {[%emt 0:00:01]} Nf6 {[%emt 0:04:56]} 22. Rf1 {[%emt 0:00:18]} Nxg4+ {[%emt 0:07:50]} 23. hxg4 {[%emt 0:00:08]} Qe8 {[%emt 0:00:14]} 24. Re1 {[%emt 0:00:36]} Qc8 {[%emt 0:00:41]} 25. Kg3 {[%emt 0:01:26]} Bxg4 {[%emt 0:01:06]} 26. Rh1+ {[%emt 0:00:18]} Bh5 {[%emt 0:00:49]} 27. Rxh5+ {[%emt 0:00:09]} 1-0

[Event "Polish Youth Ekstraliga 2022"]
[Site "Lublin"]
[Date "2022.07.02"]
[Round "8.23"]
[White "Rejniak, Zuzanna"]
[Black "Wikar, Martyna"]
[Result "0-1"]
[ECO "C47"]
[WhiteElo "1804"]
[BlackElo "2197"]
[Annotator "RC"]
[PlyCount "112"]
[EventDate "2022.06.24"]
[EventType "team-tourn"]
[EventCountry "POL"]
[SourceTitle "playchess.com"]
[Source "ChessBase"]
[SourceQuality "1"]
[TimeControl "40/5400+30:1800+30"]

1. e4 {[%emt 0:00:03]} e5 {[%emt 0:00:50]} 2. Nf3 {[%emt 0:00:08]} Nc6 {[%emt 0:00:04]} 3. Nc3 {[%emt 0:00:14]} Nf6 {[%emt 0:00:30]} 4. a3 {[%emt 0:01:41]} d6 {[%emt 0:03:45]} 5. d4 {[%emt 0:00:52]} exd4 {[%emt 0:03:57]} 6. Nxd4 {[%emt 0:00:21]} Be7 {[%emt 0:03:34]} 7. Be2 {[%emt 0:04:59]} O-O {[%emt 0:01:34]} 8. Be3 {[%emt 0:06:53]} Re8 {[%emt 0:00:42]} 9. O-O {[%emt 0:11:47]} Bf8 {[%emt 0:01:12]} 10. Nxc6 {[%emt 0:04:24]} bxc6 {[%emt 0:00:24]} 11. Bf3 {[%emt 0:01:08]} Bb7 {[%emt 0:00:58]} 12. Bg5 {[%emt 0:05:25]} h6 {[%emt 0:01:52]} 13. Bh4 {[%emt 0:01:33]} a5 {[%emt 0:05:34]} 14. b4 {[%emt 0:18:46]} Be7 {[%emt 0:03:01]} 15. Re1 {[%emt 0:05:02]} Nd7 {[%emt 0:02:50]} 16. Bxe7 {[%emt 0:04:15]} Qxe7 {[%emt 0:00:12]} 17. Rb1 {[%emt 0:08:28]} axb4 {[%emt 0:03:41]} 18. axb4 {[%emt 0:01:57]} Qf6 {[%emt 0:05:36]} 19. Rb3 {[%emt 0:05:04]} Ne5 {[%emt 0:03:41]} 20. Ne2 {[%emt 0:05:11]} Ra4 {[%emt 0:05:11]} 21. Ng3 {[%emt 0:04:01]} Rea8 {[%emt 0:01:41]} 22. Be2 {[%emt 0:02:19]} g6 {[%emt 0:08:18]} 23. Qd2 {[%emt 0:01:46]} Ra1 {[%emt 0:00:35]} 24. Rbb1 {[%emt 0:00:04]} Rxb1 {[%emt 0:05:06]} 25. Rxb1 {[%emt 0:00:03]} Ba6 {[%emt 0:00:32]} 26. Bxa6 {[%emt 0:03:19]} Rxa6 {[%emt 0:00:06]} 27. Qc3 {[%emt 0:01:33]} Qf4 {[%emt 0:03:26]} 28. h3 {[%emt 0:02:01]} h5 {[%emt 0:01:13]} 29. Re1 {[%emt 0:00:13]} Kh7 {[%emt 0:06:46]} 30. Nf1 {[%emt 0:00:43]} h4 {[%emt 0:01:39]} 31. Nh2 {[%emt 0:00:48]} Ra2 {[%emt 0:01:05]} 32. Qb3 {[%emt 0:00:27]} Qd2 {[%emt 0:00:47]} 33. Qxa2 {[%emt 0:00:02]} Qxe1+ {[%emt 0:00:07]} 34. Nf1 {[%emt 0:00:01]} Qxe4 {[%emt 0:00:46]} 35. Qa7 {[%emt 0:01:16]} Qxb4 {[%emt 0:02:12]} 36. Qxc7 {[%emt 0:00:03]} Kg7 {[%emt 0:00:40]} 37. Qe7 {[%emt 0:00:49]} Qf4 {[%emt 0:01:10]} 38. Ne3 {[%emt 0:01:04]} d5 {[%emt 0:00:31]} 39. Qa3 {[%emt 0:00:37]} d4 {[%emt 0:00:52]} 40. Nf1 {[%emt 0:00:00]} Qf5 {[%emt 0:00:00]} 41. Qa4 {[%emt 0:05:58]} c5 {[%emt 0:03:40]} 42. Nd2 {[%emt 0:01:37]} Qg5 {[%emt 0:04:52]} 43. Qa5 {[%emt 0:03:19]} c4 {[%emt 0:05:52]} 44. Kh1 {[%emt 0:01:19]} Qf4 {[%emt 0:04:13]} 45. Qd5 {[%emt 0:04:41]} d3 {[%emt 0:04:23]} 46. cxd3 {[%emt 0:01:39]} cxd3 {[%emt 0:06:20]} 47. Kg1 {[%emt 0:02:18]} Qxd2 {[%emt 0:09:52]} 48. Qxe5+ {[%emt 0:00:05]} Kh7 {[%emt 0:00:25]} 49. Qf6 {[%emt 0:01:28]} Qc1+ {[%emt 0:00:20]} 50. Kh2 {[%emt 0:00:04]} Qc7+ {[%emt 0:00:09]} 51. g3 {[%emt 0:01:22]} hxg3+ {[%emt 0:00:46]} 52. fxg3 {[%emt 0:00:03]} d2 {[%emt 0:01:22]} 53. Qh4+ {[%emt 0:00:20]} Kg8 {[%emt 0:00:05]} 54. Qd4 {[%emt 0:00:02]} Qc2 {[%emt 0:00:20]} 55. Qd8+ {[%emt 0:00:04]} Kg7 {[%emt 0:00:08]} 56. Qd4+ {[%emt 0:00:04]} f6 {[%emt 0:00:09]} 0-1

[Event "Polish Youth Ekstraliga 2022"]
[Site "Lublin"]
[Date "2022.07.02"]
[Round "8.24"]
[White "Natoli, Alessia"]
[Black "Dabrowska, Ewa"]
[Result "1-0"]
[ECO "B24"]
[WhiteElo "1680"]
[BlackElo "1133"]
[Annotator "NA RC"]
[PlyCount "73"]
[EventDate "2022.06.24"]
[EventType "team-tourn"]
[EventCountry "POL"]
[SourceTitle "playchess.com"]
[Source "ChessBase"]
[SourceQuality "1"]
[TimeControl "40/5400+30:1800+30"]

1. e4 c5 2. Nc3 Nc6 3. Bb5 Nd4 4. Bc4 a6 5. d3 b5 6. Bb3 g6 7. Nf3 Bg7 8. Nxd4 cxd4 9. Qf3 e6 10. Ne2 Ne7 11. O-O O-O 12. Qg3 d6 13. f4 e5 14. f5 gxf5 15. Bh6 Ng6 16. Bxg7 f4 17. Bxf8 fxg3 18. Rxf7 gxh2+ 19. Kh1 Qa5 20. Raf1 h6 21. Rg7+ Kh8 22. Rg8+ Kh7 23. Rg7+ Kh8 24. Rxg6 Ra7 25. Bxh6 Kh7 26. Rxd6 Bg4 27. Ng3 Qb4 28. Bf8 Qd2 29. Rff6 Qd1+ 30. Kxh2 Be6 31. Rdxe6 Qg4 32. Rh6+ Kg8 33. Ref6+ Rf7 34. Rxf7 Qc8 35. Rff6+ Qc4 36. dxc4 bxc4 37. Bxc4# 1-0